bitfinex/quotes_ETHUSD_20250123
["timestamp","ask_amount","ask_price","bid_price","bid_amount"]
[1737659650028,3.09042,3235.8,3235.4,0.38789501]
[1737659650229,3.09034,3235.9,3235.4,0.41916975]
[1737659650403,0.62552538,3236.0,3235.4,3.50992975]
[1737659650744,3.09007,3236.2,3235.6,3.09055]
[1737659651041,3.09007,3236.2,3235.7,3.12182207]
[1737659651214,3.09007,3236.2,3235.8,0.62123721]
[1737659651421,3.09019,3236.1,3235.8,0.65250397]
[1737659652139,3.09007,3236.2,3235.8,0.03126676]
[1737659652445,3.09025,3236.0,3235.5,0.7712]
[1737659652644,3.09025,3236.0,3235.9,0.03124004]
[1737659653140,3.0905,3235.8,3235.1,0.8036]
[1737659653345,3.0908,3235.5,3235.1,0.8036]
[1737659653561,3.09081,3235.4,3235.1,0.8036]
[1737659653940,3.09094,3235.3,3235.1,0.8036]
[1737659654664,3.09135,3234.9,3234.6,0.7666]
[1737659654962,3.09134,3234.9,3234.6,0.7666]
[1737659655170,3.09147,3234.7,3234.6,0.7666]
[1737659655470,3.09187,3234.3,3233.9,3.22947021]
[1737659655631,3.09211,3234.1,3233.9,3.22947021]
[1737659655974,3.09214,3234.0,3233.9,3.22947021]
[1737659656345,3.09251,3233.7,3233.5,3.22947021]
[1737659657466,3.09252,3233.6,3233.5,3.22947021]
[1737659658835,6.42172,3233.6,3233.5,2.1e-07]
[1737659659154,6.7744754,3233.6,3233.5,2.1e-07]
[1737659659346,8.14887603,3233.6,3233.5,2.1e-07]
[1737659659747,8.14887603,3233.6,3232.1,0.7727]
[1737659659953,3.0935,3232.6,3232.2,0.03006486]
[1737659660142,3.0935,3232.6,3232.1,0.7727]
[1737659660483,3.09362,3232.5,3232.2,0.03024116]
[1737659660843,3.09362,3232.5,3232.1,0.7727]
[1737659661062,3.09362,3232.5,3232.3,0.02843745]
[1737659661063,3.09367,3232.4,3232.3,0.02843745]
[1737659661263,3.09377,3232.3,3232.2,0.02849754]
[1737659661467,3.09416,3231.9,3231.5,2.1e-07]
[1737659661998,3.0939,3232.2,3231.6,0.02857792]
[1737659662423,3.52324265,3232.3,3231.6,0.02857792]
[1737659662424,3.09396,3232.1,3231.6,0.02857792]
[1737659664517,6.61758265,3231.7,3231.6,0.02857792]
[1737659664737,7.58876392,3231.7,3231.6,0.02857792]
[1737659664873,3.09475,3231.3,3230.7,0.7727]
[1737659665239,3.09493,3231.1,3230.8,0.02988193]
[1737659665742,3.09493,3231.1,3230.7,0.7727]
[1737659665875,3.52324265,3232.3,3230.8,0.03094758]
[1737659666075,3.09426,3231.8,3231.1,3.09488]
[1737659666297,3.72201367,3232.0,3231.3,3.09464]
[1737659666785,3.09415,3231.9,3231.3,3.13146616]
[1737659667185,3.09415,3231.9,3231.3,3.09464]
[1737659668935,3.09473,3231.3,3230.7,3.86798]
[1737659669082,3.09473,3231.3,3230.7,0.7727]
[1737659669283,3.52324265,3231.4,3230.8,0.03387274]
[1737659669486,6.61787265,3231.4,3230.8,0.03387274]
[1737659669728,3.09456,3231.5,3230.8,3.12906274]
[1737659670229,3.09468,3231.4,3230.8,3.12906274]
[1737659670388,3.72070104,3231.3,3230.8,0.03387274]
[1737659670577,3.09502,3231.0,3230.8,0.03387274]
[1737659670791,3.09507,3231.0,3230.8,0.03387274]
[1737659671179,3.09507,3231.0,3230.4,3.90212]
[1737659671384,3.09527,3230.8,3230.4,0.8066]
[1737659672509,3.09507,3231.0,3230.4,3.90218]
[1737659672907,3.09485,3231.2,3230.4,4.30260281]
[1737659673194,3.09509,3231.0,3230.4,4.30260281]
[1737659673746,3.09509,3231.0,3230.3,0.1020481]
[1737659673747,3.09538,3230.7,3230.3,0.1020481]
[1737659674592,6.61819265,3231.1,3230.3,3.1976781]
[1737659674792,0.3292,3231.6,3230.8,3.09514]
[1737659675004,3.09464,3231.4,3230.8,3.85524]
[1737659675205,6.61731265,3232.0,3231.2,3.09478]
[1737659675206,3.09429,3231.8,3231.2,3.09478]
[1737659675405,3.09406,3232.0,3231.4,3.09462]
[1737659675806,3.09391,3232.2,3231.5,3.09451]
[1737659676190,0.62248932,3231.9,3231.5,3.09451]
[1737659676398,0.62248932,3231.9,3231.5,3.85461]
[1737659676597,3.0,3232.1,3231.6,0.385461]
[1737659676793,3.09408,3232.0,3231.6,0.385461]
[1737659677012,3.09415,3231.9,3231.5,0.7601]
[1737659677428,3.09408,3232.0,3231.5,0.7601]
[1737659678101,3.09416,3231.9,3231.5,0.7601]
[1737659680143,3.61691867,3232.1,3231.5,0.7601]
[1737659680307,6.71093867,3232.1,3231.5,0.7601]
[1737659680512,3.09408,3232.0,3231.6,0.03384586]
[1737659682900,3.61691867,3232.1,3231.6,0.03384586]
[1737659683222,0.60936803,3232.6,3232.1,0.7601]
[1737659684133,3.60936803,3232.6,3232.1,0.7601]
[1737659684443,3.09392,3232.2,3231.8,0.7601]
[1737659685138,3.09372,3232.4,3231.9,3.09415]
[1737659685340,6.09361,3232.5,3231.9,3.09415]
[1737659685632,3.70286803,3232.6,3231.9,3.09415]
[1737659685825,3.70286803,3232.6,3232.0,3.09399]
[1737659686025,6.79643803,3232.6,3232.0,3.09404]
[1737659686229,3.09359,3232.5,3231.8,4.2397]
[1737659686427,0.60936803,3232.6,3232.0,3.09405]
[1737659686736,3.70285803,3232.6,3232.0,3.09405]
[1737659686914,3.70285803,3232.6,3231.9,3.82753]
[1737659687113,3.0937,3232.4,3231.9,3.82753]
[1737659687534,3.70285803,3232.6,3231.9,3.82748]
[1737659688038,6.79641803,3232.6,3232.0,3.09404]
[1737659688706,3.70285803,3232.6,3232.0,3.09404]
[1737659688907,0.60936803,3232.6,3232.0,3.09404]
[1737659689106,3.09359,3232.5,3232.0,3.09404]
[1737659689307,3.09359,3232.5,3231.9,3.82749]
[1737659691245,0.60936803,3232.6,3231.9,3.82749]
[1737659691442,0.60936803,3232.6,3232.1,3.09392]
[1737659691611,3.70284803,3232.6,3232.1,3.09392]
[1737659692211,6.09341,3232.7,3232.1,3.09392]
[1737659692417,6.09341,3232.7,3232.1,3.09388]
[1737659692634,6.09341,3232.7,3232.2,3.09382]
[1737659693027,3.09341,3232.7,3232.2,3.09382]
[1737659693212,0.60464483,3232.8,3232.4,0.7949]
[1737659693409,0.60464483,3232.8,3232.4,3.8885]
[1737659693604,0.60464483,3232.8,3232.4,0.7949]
[1737659694033,3.0935,3232.6,3232.4,0.7949]
[1737659694346,3.09379,3232.3,3231.8,0.7845]
[1737659694514,3.09397,3232.1,3231.8,0.7845]
[1737659695254,3.09379,3232.3,3231.8,0.7845]
[1737659695953,3.09354,3232.6,3231.8,0.7845]
[1737659696118,3.09354,3232.6,3232.0,3.094]
[1737659696322,3.09354,3232.6,3232.1,3.09388]
[1737659696522,0.60464483,3232.8,3232.0,3.094]
[1737659696729,0.60464483,3232.8,3232.4,3.09366]
[1737659696937,3.60464483,3232.8,3232.2,3.09379]
[1737659697136,6.69800483,3232.8,3232.2,3.09379]
[1737659699260,3.60464483,3232.8,3232.4,3.09365]
[1737659699449,0.60464483,3232.8,3232.4,3.89765]
[1737659699828,3.0934,3232.7,3232.2,3.09379]
[1737659700443,0.60464483,3232.8,3232.1,0.7519]
[1737659700623,0.60464483,3232.8,3232.4,3.0936]
[1737659701243,0.60464483,3232.8,3232.4,6.1872]
[1737659701449,0.03866775,3232.7,3232.2,3.09381]
[1737659701758,3.24125271,3232.5,3232.1,3.09389]
[1737659701961,4.80688829,3232.8,3232.1,3.09389]
[1737659702160,3.0,3233.0,3232.6,3.09339]
[1737659702364,3.0,3233.0,3232.7,3.0933]
[1737659702526,3.24125271,3233.1,3232.2,0.7526]
[1737659702527,0.3292,3233.1,3232.5,3.09351]
[1737659702721,3.0,3233.0,3232.4,3.09361]
[1737659702963,3.71845339,3232.9,3232.4,3.09361]
[1737659703261,2.91205271,3232.8,3232.4,3.09361]
[1737659703652,2.91205271,3232.8,3232.5,3.09357]
[1737659703853,0.62519339,3232.9,3232.5,3.09357]
[1737659704555,0.62519339,3232.9,3232.6,3.09346]
[1737659705283,1.57524253,3235.7,3232.6,3.09346]
[1737659705284,3.09268,3233.5,3232.6,0.618707]
[1737659705428,0.37607906,3233.9,3232.7,0.8332]
[1737659705429,0.3292,3233.9,3232.7,0.8332]
[1737659705627,0.62333675,3233.7,3232.8,3.12421676]
[1737659705853,2.91205271,3233.4,3232.9,3.09319]
[1737659706071,6.00483271,3233.4,3232.7,38.92654]
[1737659706227,2.91205271,3233.4,3233.0,3.09303]
[1737659706927,3.42216,3233.2,3232.6,3.09341]
[1737659707164,3.42216,3233.2,3232.4,3.09364]
[1737659707165,3.0931,3233.0,3232.4,3.09364]
[1737659707365,3.09349,3232.6,3232.1,3.09394]
[1737659707533,3.24125271,3232.5,3232.1,3.09394]
[1737659707885,6.00540271,3232.8,3232.2,3.09379]
[1737659708088,7.24445598,3232.8,3232.2,3.09379]
[1737659708232,3.0,3232.9,3232.5,3.09357]
[1737659708432,3.24125271,3233.1,3232.7,3.09338]
[1737659708433,0.61028883,3232.8,3232.7,3.09338]
[1737659708693,0.3292,3233.1,3232.7,3.09338]
[1737659708887,0.60979382,3233.0,3232.7,3.09338]
[1737659709054,0.60979382,3233.0,3232.9,3.09319]
[1737659709454,3.0,3233.3,3233.0,3.09301]
[1737659709847,3.0,3233.3,3232.9,3.09319]
[1737659710491,3.0,3233.3,3233.0,3.09304]
[1737659710651,0.61752839,3233.1,3233.0,3.09304]
[1737659711533,0.61752839,3233.1,3232.9,3.0931]
[1737659711739,3.0,3233.3,3232.9,3.0931]
[1737659712690,3.0,3233.3,3232.7,3.09335]
[1737659712846,0.60826173,3233.2,3232.8,0.7734]
[1737659713035,0.60826173,3233.2,3233.1,3.093]
[1737659713239,0.60826173,3233.2,3233.1,38.093]
[1737659713435,0.60826173,3233.2,3232.9,3.0931]
[1737659713635,3.09258,3233.6,3233.0,3.09307]
[1737659713870,2.91205271,3233.7,3233.2,3.0929]
[1737659714064,3.09254,3233.6,3233.0,3.09307]
[1737659714264,2.91205271,3233.7,3233.0,5.40488488]
[1737659714464,3.09242,3233.8,3233.0,3.09304]
[1737659714665,3.09242,3233.8,3233.2,3.09283]
[1737659714976,3.61741876,3233.9,3233.5,3.09256]
[1737659715165,0.61741876,3233.9,3233.5,3.09256]
[1737659715463,0.61741876,3233.9,3233.0,35.0]
[1737659715464,0.3292,3234.0,3233.6,3.09252]
[1737659715667,0.3292,3234.0,3233.7,3.09242]
[1737659715863,0.3292,3234.0,3233.8,3.09225]
[1737659715864,0.60918981,3234.0,3233.8,3.09225]
[1737659716097,3.09157,3234.6,3234.0,3.09209]
[1737659716503,6.00362271,3234.6,3234.0,3.09209]
[1737659716678,3.0,3234.5,3234.0,3.09209]
[1737659716879,3.09196,3234.2,3233.4,3.8661]
[1737659717079,3.75964458,3234.2,3233.5,3.09255]
[1737659717301,0.3292,3234.1,3233.6,3.0925]
[1737659717905,3.0,3234.2,3233.8,3.09232]
[1737659718095,3.0,3234.3,3233.8,3.09232]
[1737659718590,3.0,3234.3,3233.4,3.86605]
[1737659718591,3.09213,3234.1,3233.4,3.86605]
[1737659718790,3.405298,3234.0,3233.4,3.86605]
[1737659718996,3.09222,3234.0,3233.4,3.86605]
[1737659719195,0.3292,3233.9,3233.4,3.09269]
[1737659719968,0.03865477,3233.8,3233.1,0.7577]
[1737659720172,0.03865477,3233.8,3233.0,3.09302]
[1737659720173,3.09262,3233.6,3233.0,3.09302]
[1737659720373,3.09263,3233.5,3233.0,3.09302]
[1737659720573,3.09263,3233.5,3232.8,3.09327]
[1737659720574,3.09278,3233.4,3232.8,3.09327]
[1737659720882,3.09298,3233.2,3232.7,0.7577]
[1737659721068,3.09314,3233.0,3232.3,35.7577]
[1737659721300,3.09298,3233.2,3232.6,3.09347]
[1737659721505,6.42205,3233.3,3232.7,3.09335]
[1737659721822,7.75609489,3233.3,3232.6,3.09347]
[1737659722224,3.3292,3233.3,3232.3,35.7577]
[1737659722425,0.62725571,3233.4,3232.8,3.09322]
[1737659722625,3.0,3233.3,3232.8,3.09322]
[1737659722943,0.62725571,3233.4,3232.8,3.09322]
[1737659723235,3.62725571,3233.4,3232.9,3.09316]
[1737659724239,3.0,3233.4,3233.1,3.09299]
[1737659724607,3.0,3233.5,3233.0,3.09308]
[1737659724807,0.3292,3233.6,3232.9,0.7643]
[1737659725007,0.3292,3233.6,3233.1,3.09292]
[1737659725344,3.09204,3234.2,3233.7,3.09242]
[1737659725636,3.3292,3234.3,3233.7,3.09242]
[1737659725838,0.3292,3234.6,3234.1,3.09203]
[1737659726038,0.61440055,3234.6,3234.3,3.0918]
[1737659726212,0.3292,3235.0,3234.3,3.0918]
[1737659726414,3.93320795,3235.0,3234.3,3.0918]
[1737659726613,3.09129,3234.9,3234.3,3.0918]
[1737659727022,3.0,3234.8,3234.2,0.8229]
[1737659727218,3.0,3234.8,3234.2,4.306345]
[1737659727421,3.0,3234.8,3234.2,1.214395]
[1737659727628,3.09154,3234.7,3234.1,3.09204]
[1737659727813,3.09163,3234.6,3233.9,3.09215]
[1737659728007,3.08432784,3234.4,3233.7,3.91529]
[1737659728343,3.09171,3234.5,3233.7,3.91529]
[1737659728542,3.09171,3234.5,3233.8,0.94816908]
[1737659729037,3.0,3234.6,3234.0,3.09206]
[1737659729239,3.0,3234.6,3234.1,3.09204]
[1737659729447,6.0916,3234.6,3234.1,3.09204]
[1737659729603,3.09168,3234.5,3233.8,0.94816908]
[1737659729804,0.3292,3234.2,3233.7,3.0924]
[1737659730011,3.09211,3234.1,3233.5,3.0926]
[1737659732144,3.09211,3234.1,3233.3,3.91564]
[1737659732446,3.09211,3234.1,3232.7,3.09337]
[1737659732447,3.09233,3233.8,3232.8,3.09322]
[1737659732647,3.09282,3233.3,3232.5,3.09354]
[1737659732847,3.09298,3233.2,3232.6,3.09348]
[1737659733347,3.09282,3233.3,3232.7,3.09336]
[1737659733920,3.09294,3233.2,3232.7,3.09336]
[1737659734122,3.09322,3232.9,3232.4,0.7853]
[1737659734322,0.3292,3232.8,3231.9,0.7853]
[1737659734522,3.09388,3232.2,3231.7,3.19948754]
[1737659734847,3.09388,3232.2,3231.7,6.29382754]
[1737659735046,3.52791868,3232.7,3231.7,3.19948754]
[1737659735047,3.0,3232.6,3231.7,3.19948754]
[1737659735267,3.09422,3231.9,3231.7,3.19948754]
[1737659736026,6.09425,3231.8,3231.7,3.19948754]
[1737659737064,6.09425,3231.8,3231.3,3.09472]
[1737659737268,6.09425,3231.8,3231.3,3.713683]
[1737659737568,6.09425,3231.8,3231.3,0.618963]
[1737659737763,3.0,3231.9,3231.3,0.618963]
[1737659737968,3.09443,3231.7,3231.3,0.618963]
[1737659738169,3.09478,3231.3,3230.9,0.385524]
[1737659738545,3.09454,3231.5,3230.9,0.385524]
[1737659739073,3.09454,3231.5,3230.7,3.09528]
[1737659739074,3.0,3231.4,3230.7,3.09528]
[1737659739277,3.0,3231.4,3230.3,0.1020481]
[1737659739278,3.09508,3231.0,3230.3,3.1976581]
[1737659739479,3.09522,3230.8,3230.3,0.1020481]
[1737659739846,3.0953,3230.7,3230.3,0.1020481]
[1737659740050,6.09516,3230.9,3230.3,0.1020481]
[1737659740243,0.62952555,3230.8,3230.3,3.1977181]
[1737659740844,3.72472555,3230.8,3230.4,0.03717361]
[1737659741044,0.62952555,3230.8,3230.4,0.03717361]
[1737659741783,0.62952555,3230.8,3230.4,3.13275361]
[1737659742558,0.3292,3230.7,3230.4,0.03717361]
[1737659743486,0.3292,3230.7,3230.3,0.1020481]
[1737659744397,3.72475555,3230.8,3230.3,0.1020481]
[1737659745190,6.42479,3230.4,3230.3,0.1020481]
[1737659746195,3.0,3230.4,3230.3,0.1020481]
[1737659746690,0.62952555,3230.8,3230.3,0.1020481]
[1737659746859,0.62952555,3230.8,3230.4,3.09556]
[1737659747055,3.0955,3230.5,3230.3,0.135982]
[1737659747256,3.0,3230.6,3230.3,0.1020481]
[1737659747592,3.09559,3230.4,3230.3,0.1020481]
[1737659748198,6.09559,3230.4,3230.3,0.1020481]
[1737659749194,6.42479,3230.4,3230.3,0.1020481]
[1737659749372,7.38068697,3230.4,3230.3,0.1020481]
[1737659750960,3.3292,3230.4,3230.3,0.1020481]
[1737659751191,6.42479,3230.4,3230.3,0.1020481]
[1737659752209,3.0,3230.4,3230.3,0.1020481]
[1737659753220,6.09559,3230.4,3230.3,0.1020481]
[1737659753419,3.0,3230.4,3230.3,0.1020481]
[1737659753589,3.0,3230.4,3230.3,0.13135873]
[1737659754731,3.09537,3230.7,3230.3,0.13135873]
[1737659754893,3.0,3230.6,3230.3,0.13135873]
[1737659755305,3.03869538,3230.6,3230.3,0.13135873]
[1737659755538,3.09559,3230.4,3230.3,0.13135873]
[1737659755717,3.13428909,3230.4,3230.3,0.1020481]
[1737659755915,6.13428909,3230.4,3230.3,0.1020481]
[1737659756120,6.46348909,3230.4,3230.3,0.1020481]
[1737659756341,6.42479,3230.4,3230.3,0.1020481]
[1737659756636,8.24517864,3230.4,3230.3,0.1020481]
[1737659756837,8.49557864,3230.4,3230.3,0.1020481]
[1737659758022,3.09646,3229.5,3229.1,0.7674]
[1737659758414,3.09646,3229.5,3229.2,0.04053735]
[1737659758708,0.03870803,3229.6,3229.1,0.7674]
[1737659758908,3.09628,3229.7,3229.2,3.09672]
[1737659759111,3.0,3230.0,3229.6,3.09628]
[1737659759317,3.425,3230.2,3229.6,3.09634]
[1737659759541,3.0,3230.1,3229.6,3.09634]
[1737659759842,0.62288149,3230.1,3229.5,3.09639]
[1737659760146,3.09599,3230.0,3229.4,3.0965]
[1737659760316,0.62288149,3230.1,3229.4,3.0965]
[1737659760520,3.71876149,3230.1,3229.6,3.09628]
[1737659760722,0.62288149,3230.1,3229.6,3.09628]
[1737659760926,0.62288149,3230.1,3229.7,3.09623]
[1737659761130,3.0,3230.2,3229.7,3.09623]
[1737659761328,0.60876589,3230.2,3229.8,0.7633]
[1737659761541,3.0,3230.1,3229.8,0.7633]
[1737659761947,0.60876589,3230.2,3229.8,0.7633]
[1737659762114,3.60876589,3230.2,3229.8,0.7633]
[1737659762943,3.0,3230.2,3229.9,3.09601]
[1737659763145,0.2504,3230.4,3229.9,3.79464816]
[1737659763347,0.2504,3230.4,3229.9,10.09373816]
[1737659763548,0.2504,3230.4,3229.9,3.2031]
[1737659763746,3.09597,3230.0,3229.9,3.2031]
[1737659764128,3.09589,3230.1,3229.9,3.2031]
[1737659764512,6.09597,3230.0,3229.9,3.2031]
[1737659764848,3.0,3230.0,3229.9,3.2031]
[1737659765148,6.738479,3230.0,3229.9,3.2031]
[1737659766854,3.09665,3229.3,3228.8,0.7751]
[1737659767014,3.0963,3229.7,3228.9,3.09696]
[1737659767346,3.0,3229.6,3229.1,3.09677]
[1737659767649,3.0,3229.6,3229.2,3.09674]
[1737659767946,6.09635,3229.6,3229.1,0.7751]
[1737659768132,7.048535,3229.6,3229.1,0.7751]
[1737659768648,3.0,3229.3,3228.8,0.7824]
[1737659768821,3.09689,3229.1,3228.4,6.97727]
[1737659769239,3.0,3228.8,3228.4,3.87982]
[1737659769440,3.0,3228.8,3228.4,0.7824]
[1737659769638,3.42672,3228.4,3227.8,0.7824]
[1737659769839,3.42672,3228.4,3227.5,2.947]
[1737659769840,3.09771,3228.2,3227.5,3.7294]
[1737659770170,3.0,3228.7,3227.1,3.2627912]
[1737659770171,3.09863,3227.3,3227.1,0.1640512]
[1737659770372,6.89585711,3227.2,3226.7,3.19948754]
[1737659770566,9.62695868,3226.8,3226.7,3.19948754]
[1737659770766,10.89954555,3226.8,3226.7,3.19948754]
[1737659770967,11.22874555,3226.8,3226.7,3.19948754]
[1737659771866,11.22874555,3226.8,3226.6,0.59748469]
[1737659771867,0.3292,3225.7,3225.1,3.10067]
[1737659772071,3.0994,3226.5,3225.7,3.10003]
[1737659772372,3.42796,3227.1,3226.0,3.09973]
[1737659772545,0.62061788,3226.7,3226.0,3.09974]
[1737659772870,0.62061788,3226.7,3226.0,3.13668161]
[1737659773163,3.0,3226.9,3226.2,3.09954]
[1737659773364,3.0,3227.0,3226.4,3.09942]
[1737659773673,3.42845,3226.6,3225.7,3.10009]
[1737659773941,0.3292,3226.6,3225.8,3.09996]
[1737659774097,3.09925,3226.6,3225.8,3.12860503]
[1737659774384,3.09914,3226.7,3225.8,0.02869503]
[1737659774588,3.0998,3226.1,3225.8,0.02869503]
[1737659774748,3.52791868,3226.5,3224.7,6.62894868]
[1737659774749,6.09989,3226.0,3225.0,0.8207]
[1737659774945,6.09989,3226.0,3225.0,3.92146]
[1737659775169,3.0,3225.8,3225.1,0.02870779]
[1737659775384,3.0,3226.2,3225.4,3.10033]
[1737659775684,3.0,3226.2,3225.5,0.02873034]
[1737659776190,3.09924,3226.6,3225.6,0.7603]
[1737659776383,3.0,3226.7,3225.6,0.7603]
[1737659776384,3.09937,3226.5,3225.6,3.86041]
[1737659776584,3.09946,3226.4,3225.7,0.02877933]
[1737659776787,3.09946,3226.4,3225.8,0.38891893]
[1737659777089,3.09946,3226.4,3225.9,0.02853325]
[1737659778628,3.0,3226.7,3225.9,3.12842325]
[1737659778977,6.09917,3226.7,3225.9,3.12842325]
[1737659779208,3.0,3226.5,3225.9,3.12842325]
[1737659779377,3.0,3226.5,3225.9,3.6377752]
[1737659779898,0.94104567,3227.0,3225.9,0.5378852]
[1737659780127,0.94104567,3227.0,3225.9,3.12839325]
[1737659780309,3.0,3226.5,3225.9,0.02853325]
[1737659780616,3.09946,3226.4,3225.6,3.86048]
[1737659780774,3.09946,3226.4,3226.0,0.02981356]
[1737659780971,3.0,3226.5,3225.8,3.09999]
[1737659781172,6.09933,3226.5,3226.1,0.02976797]
[1737659781418,6.09933,3226.5,3225.8,3.09999]
[1737659781598,6.09933,3226.5,3226.2,0.02972239]
[1737659781804,6.09933,3226.5,3225.6,3.86048]
[1737659781989,3.09913,3226.8,3226.3,0.02967681]
[1737659782309,3.09924,3226.6,3226.4,0.02941407]
[1737659782510,0.03874317,3226.5,3225.7,35.386048]
[1737659782719,3.09942,3226.4,3225.6,0.7603]
[1737659782885,3.0,3226.1,3225.8,0.02952642]
[1737659783091,3.0,3226.1,3225.7,0.02958892]
[1737659783092,0.03874801,3226.0,3225.7,0.02958892]
[1737659783416,3.0,3225.5,3224.2,6.5]
[1737659783588,3.0,3225.1,3224.1,3.10164]
[1737659783790,3.10065,3225.2,3224.2,38.10147]
[1737659783791,3.10089,3224.9,3224.2,38.10147]
[1737659783988,0.63534481,3225.5,3224.2,38.10147]
[1737659783989,0.03876444,3225.4,3224.2,38.10147]
[1737659784190,3.03876444,3225.4,3224.2,35.0]
[1737659784524,3.52791868,3224.9,3224.0,3.0621]
[1737659784680,0.3292,3225.0,3224.0,3.0621]
[1737659784681,3.10164,3224.1,3224.0,3.0621]
[1737659785177,3.0,3224.1,3224.0,3.0621]
[1737659785579,6.10164,3224.1,3224.0,3.0621]
[1737659785884,3.0,3224.1,3224.0,3.09107085]
[1737659786080,3.10128,3224.5,3224.0,3.09107085]
[1737659786399,0.620565,3224.6,3224.0,3.09107085]
[1737659786618,3.10101,3224.8,3224.1,3.10155]
[1737659786817,3.10106,3224.7,3224.1,3.10155]
[1737659786997,3.0,3224.6,3224.1,3.10155]
[1737659787197,3.0,3224.6,3224.2,0.0287693]
[1737659787406,6.10122,3224.6,3224.2,0.0287693]
[1737659787717,3.0,3224.6,3224.3,0.02872366]
[1737659787912,3.0,3224.6,3224.0,6.48931221]
[1737659788116,3.0,3224.6,3224.4,0.02867802]
[1737659788316,9.62916868,3224.5,3224.4,0.02867802]
[1737659788520,3.10125,3224.5,3224.0,3.0621]
[1737659789137,3.10137,3224.4,3224.0,3.0621]
[1737659789345,3.10158,3224.2,3224.0,3.0621]
[1737659789644,0.310158,3224.2,3224.0,3.0621]
[1737659789807,3.0,3224.1,3224.0,3.0621]
[1737659790020,6.10164,3224.1,3224.0,3.0621]
[1737659790344,3.0,3224.1,3224.0,3.0621]
[1737659790525,3.43093,3224.0,3223.9,0.1640512]
[1737659790726,6.46970942,3224.0,3223.9,0.1640512]
[1737659790911,6.43093,3224.0,3223.9,0.1640512]
[1737659791109,7.2584202,3224.0,3223.9,0.1640512]
[1737659791361,6.43093,3224.0,3223.9,0.1640512]
[1737659792128,3.0,3224.0,3223.9,0.1640512]
[1737659793713,0.62885942,3224.2,3223.9,0.1640512]
[1737659793951,0.62885942,3224.2,3224.0,35.0]
[1737659794173,0.62885942,3224.2,3223.9,0.1640512]
[1737659794465,3.0,3224.4,3223.9,0.1640512]
[1737659795167,3.1017,3224.1,3223.9,0.1640512]
[1737659795329,3.1017,3224.1,3224.0,0.03096366]
[1737659795516,3.0,3224.4,3224.0,0.03096366]
[1737659796079,7.23720401,3224.5,3224.0,0.03096366]
[1737659796080,0.60795533,3224.5,3224.2,3.10153]
[1737659796214,0.60795533,3224.5,3224.3,0.03070392]
[1737659796414,3.10075,3225.1,3224.3,0.03070392]
[1737659796648,3.10091,3224.9,3224.3,3.10143]
[1737659796860,6.10103,3224.8,3224.4,0.03063287]
[1737659797090,3.0,3224.8,3224.2,3.10151]
[1737659797262,3.0,3224.6,3224.5,0.03058723]
[1737659797461,3.0,3224.6,3222.2,3.53179294]
[1737659797462,0.25,3222.9,3222.2,3.53179294]
[1737659797660,1.0076,3222.4,3222.3,0.03057235]
[1737659797983,0.25,3221.7,3221.5,3.32603917]
[1737659798184,0.25,3221.7,3221.5,0.22196917]
[1737659798185,1.0076,3221.7,3221.5,0.22196917]
[1737659798387,0.25,3219.0,3218.6,0.32321246]
[1737659798588,0.25,3218.8,3218.6,0.32321246]
[1737659798760,0.25,3218.8,3218.7,3.20261745]
[1737659798959,0.25,3218.8,3218.7,0.09577745]
[1737659799160,3.52791868,3219.8,3218.7,0.09577745]
[1737659799161,0.25,3218.9,3218.7,0.09577745]
[1737659799400,0.25,3219.2,3218.7,0.09577745]
[1737659799603,3.52791868,3219.4,3218.7,3.20254745]
[1737659799604,0.25,3219.0,3218.7,3.20254745]
[1737659799900,0.25,3218.8,3218.7,0.04577745]
[1737659800100,0.25,3219.0,3218.8,3.10674]
[1737659800250,0.25,3219.0,3218.9,3.42190174]
[1737659800449,0.01471801,3219.6,3219.3,3.10626]
[1737659800649,0.01471801,3219.9,3219.8,3.10578]
[1737659800852,0.01471801,3220.3,3219.5,3.10599]
[1737659801102,0.01471801,3220.3,3220.2,3.10539]
[1737659801253,0.01471801,3220.3,3220.2,3.726481]
[1737659801662,0.01471801,3220.3,3220.0,3.10552]
[1737659801663,0.01471801,3219.6,3219.1,0.8283]
[1737659801888,0.01471801,3219.6,3219.5,3.10607]
[1737659802209,0.01471801,3219.3,3219.1,0.8283]
[1737659802415,0.7789,3219.0,3218.7,0.04577745]
[1737659802616,0.7789,3219.0,3217.5,0.1640512]
[1737659802617,0.01471801,3217.6,3217.5,0.1640512]
[1737659803360,0.01471801,3217.7,3217.5,0.1640512]
[1737659804062,0.01471801,3217.9,3217.5,0.1640512]
[1737659804194,0.01471801,3217.7,3217.5,0.1640512]
[1737659804573,0.01471801,3217.9,3217.5,0.1640512]
[1737659804776,7.21702324,3219.1,3217.6,0.03008755]
[1737659804777,0.01471801,3217.7,3217.6,0.03008755]
[1737659805702,3.1078,3217.7,3217.6,0.03008755]
[1737659805905,6.10765,3217.9,3217.6,0.03008755]
[1737659806107,3.0,3218.2,3217.6,0.03008755]
[1737659806108,3.10741,3218.2,3217.6,0.03008755]
[1737659806308,0.62062963,3218.6,3217.6,0.03008755]
[1737659806309,3.10744,3218.1,3217.6,0.03008755]
[1737659806808,3.10698,3218.6,3218.0,35.0]
[1737659807118,0.62765328,3218.9,3218.1,3.13181558]
[1737659807329,3.10732,3218.2,3218.1,0.02978996]
[1737659807480,3.14616854,3218.2,3218.1,0.02978996]
[1737659807678,3.14616854,3218.2,3218.1,35.0]
[1737659807883,6.10732,3218.2,3218.1,0.02978996]
[1737659808080,3.0,3218.1,3217.5,0.1640512]
[1737659808274,3.1079,3217.6,3217.5,0.1640512]
[1737659809723,10.8827736,3217.6,3217.5,0.1640512]
[1737659809901,10.8439169,3217.6,3217.5,0.1640512]
[1737659810619,11.81826148,3217.6,3217.5,1.2e-06]
[1737659810807,13.24114755,3217.6,3217.5,1.2e-06]
[1737659810983,12.76680297,3217.6,3217.5,1.2e-06]